[Event "SVK ECo-C Extraliga 2018-19"]
[Site "Slovakia"]
[Date "2019.04.12"]
[Round "9.5"]
[White "Manik, Mikulas"]
[Black "Mrva, Martin"]
[Result "1-0"]
[ECO "C67"]
[WhiteElo "2393"]
[BlackElo "2416"]
[Annotator "NA"]
[PlyCount "79"]
[EventDate "2018.11.10"]
[EventType "team-tourn"]
[EventCountry "SVK"]
[SourceTitle "playchess.com"]
[Source "ChessBase"]
[SourceQuality "1"]
[WhiteTeam "Prakovce"]
[BlackTeam "Snina"]
[TimeControl "40/5400+30:1800+30"]

1. e4 {[%emt 0:00:00]} e5 {[%emt 0:00:55]} 2. Nf3 {[%emt 0:00:00]} Nc6 {[%emt 0:00:06]} 3. Bb5 {[%emt 0:00:26]} Nf6 {[%emt 0:00:14]} 4. O-O {[%emt 0:03:09]} Nxe4 {[%emt 0:00:19]} 5. Qe2 {[%emt 0:02:03]} Nd6 {[%emt 0:00:52]} 6. Bxc6 {[%emt 0:00:54]} dxc6 {[%emt 0:00:38]} 7. Qxe5+ {[%emt 0:00:06]} Qe7 {[%emt 0:00:08]} 8. Qa5 {[%emt 0:00:36]} Qd8 {[%emt 0:00:06]} 9. Qc3 {[%emt 0:00:24]} Be6 {[%emt 0:10:22]} 10. Re1 {[%emt 0:04:54]} Nf5 {[%emt 0:07:18]} 11. Qb3 {[%emt 0:07:49]} Bd6 {[%emt 0:07:31]} 12. Qxb7 {[%emt 0:12:40]} O-O {[%emt 0:00:53]} 13. Nc3 {[%emt 0:07:11]} Bd7 {[%emt 0:26:11]} 14. d4 {[%emt 0:08:47]} Nh4 {[%emt 0:04:22]} 15. Ne5 {[%emt 0:06:06]} Rb8 {[%emt 0:13:59]} 16. Qa6 {[%emt 0:03:47]} c5 $16 {[%emt 0:02:01]} 17. Ne4 {[%emt 0:32:36]} Bb5 {[%emt 0:06:44]} 18. Qa5 {[%emt 0:03:06]} cxd4 {[%emt 0:01:34]} 19. Bg5 {[%emt 0:00:35]} Be7 {[%emt 0:02:01]} 20. Bxh4 {[%emt 0:00:21]} Bxh4 {[%emt 0:00:10]} 21. Rad1 {[%emt 0:00:23]} Be7 {[%emt 0:01:20]} 22. Qxa7 {[%emt 0:00:44]} Rb6 {[%emt 0:01:37]} 23. a4 {[%emt 0:01:13]} Be8 {[%emt 0:07:52]} 24. Nc4 {[%emt 0:00:59]} Re6 {[%emt 0:01:50]} 25. Rxd4 {[%emt 0:00:25]} Qc8 {[%emt 0:00:08]} 26. Rdd1 {[%emt 0:00:18]} Bc6 {[%emt 0:00:43]} 27. Ng3 {[%emt 0:00:44]} Rd8 {[%emt 0:00:55]} 28. Ne3 {[%emt 0:01:08]} g6 {[%emt 0:00:57]} 29. Rxd8+ {[%emt 0:00:31]} Qxd8 {[%emt 0:00:08]} 30. Rd1 {[%emt 0:00:19]} Qc8 {[%emt 0:00:31]} 31. c3 {[%emt 0:01:14]} h5 {[%emt 0:00:18]} 32. Ne2 {[%emt 0:00:55]} Re5 {[%emt 0:01:34]} 33. b4 {[%emt 0:00:46]} Bc5 {[%emt 0:01:30]} 34. bxc5 {[%emt 0:00:25]} Rxe3 {[%emt 0:00:02]} 35. fxe3 {[%emt 0:00:45]} Qg4 {[%emt 0:00:02]} 36. Rd8+ {[%emt 0:00:25]} Kg7 {[%emt 0:00:33]} 37. Nf4 {[%emt 0:00:16]} Qh4 {[%emt 0:00:18]} 38. Rd1 {[%emt 0:01:02]} g5 {[%emt 0:00:42]} 39. Qxc7 {[%emt 0:00:34]} Qg4 {[%emt 0:00:14]} 40. Rf1 {[%emt 0:00:20]} 1-0

[Event "SVK ECo-C Extraliga 2018-19"]
[Site "Slovakia"]
[Date "2019.04.12"]
[Round "9.5"]
[White "Pacher, Milan"]
[Black "Varga, Zoltan"]
[Result "1-0"]
[ECO "B01"]
[WhiteElo "2391"]
[BlackElo "2451"]
[Annotator "ChessBase"]
[PlyCount "61"]
[EventDate "2018.11.10"]
[EventType "team-tourn"]
[EventCountry "SVK"]
[SourceTitle "playchess.com"]
[Source "ChessBase"]
[SourceQuality "1"]
[WhiteTeam "Slovan"]
[BlackTeam "Streda"]
[TimeControl "40/5400+30:1800+30"]

1. e4 {[%emt 0:00:00]} d5 {[%emt 0:01:15]} 2. exd5 {[%emt 0:00:00]} Qxd5 {[%emt 0:00:03]} 3. Nc3 {[%emt 0:00:00]} Qd8 {[%emt 0:01:34]} 4. d4 {[%emt 0:00:32]} Nf6 {[%emt 0:00:03]} 5. Nf3 {[%emt 0:00:05]} Bf5 {[%emt 0:00:35]} 6. Ne5 {[%emt 0:04:43]} e6 {[%emt 0:08:13]} 7. g4 {[%emt 0:02:54]} Be4 {[%emt 0:03:11]} 8. Nxe4 {[%emt 0:21:23]} Nxe4 {[%emt 0:00:31]} 9. Qf3 {[%emt 0:00:31]} Nd6 {[%emt 0:00:08]} 10. Bf4 {[%emt 0:00:58]} Be7 {[%emt 0:06:45]} 11. O-O-O {[%emt 0:03:50]} Bg5 {[%emt 0:01:51]} 12. h4 {[%emt 0:02:10]} Bxf4+ {[%emt 0:00:09]} 13. Qxf4 {[%emt 0:00:03]} c6 {[%emt 0:10:18]} 14. c4 {[%emt 0:17:55]} Qe7 {[%emt 0:07:36]} 15. c5 {[%emt 0:02:57]} Nc8 {[%emt 0:00:31]} 16. g5 {[%emt 0:03:32]} Nd7 {[%emt 0:00:04]} 17. h5 {[%emt 0:05:59]} h6 {[%emt 0:19:39]} 18. gxh6 {[%emt 0:06:24]} Rxh6 {[%emt 0:00:42]} 19. Rg1 {[%emt 0:00:46]} Qf6 {[%emt 0:24:09]} 20. Qxf6 {[%emt 0:04:55]} Nxf6 {[%emt 0:00:08]} 21. Rxg7 {[%emt 0:00:34]} Rxh5 {[%emt 0:03:52]} 22. Be2 {[%emt 0:01:23]} Rf5 {[%emt 0:05:06]} 23. Rh1 {[%emt 0:02:03]} Nd7 {[%emt 0:00:38]} 24. Bg4 {[%emt 0:09:00]} Rxf2 {[%emt 0:00:57]} 25. Nd3 {[%emt 0:01:42]} Kf8 {[%emt 0:01:49]} 26. Rg5 {[%emt 0:00:33]} Rg2 {[%emt 0:00:13]} 27. Nf4 {[%emt 0:01:04]} Rg3 {[%emt 0:01:12]} 28. Rf1 {[%emt 0:02:02]} Ke7 {[%emt 0:01:13]} 29. Nh5 {[%emt 0:01:33]} Rd3 30. Rg7 {[%emt 0:00:14]} Rxd4 {[%emt 0:01:24]} 31. Rfxf7+ {[%emt 0:00:06]} 1-0

[Event "SVK ECo-C Extraliga 2018-19"]
[Site "Slovakia"]
[Date "2019.04.12"]
[Round "9.5"]
[White "Vojtek, Vladimir"]
[Black "Jakubiec, Artur"]
[Result "0-1"]
[ECO "B21"]
[WhiteElo "2309"]
[BlackElo "2474"]
[Annotator "ChessBase"]
[PlyCount "112"]
[EventDate "2018.11.10"]
[EventType "team-tourn"]
[EventCountry "SVK"]
[SourceTitle "playchess.com"]
[Source "ChessBase"]
[SourceQuality "1"]
[WhiteTeam "Dubnica"]
[BlackTeam "Dunajov"]
[TimeControl "40/5400+30:1800+30"]

1. e4 {[%emt 0:00:00]} c5 {[%emt 0:00:00]} 2. f4 {[%emt 0:00:00]} d5 {[%emt 0:00:22]} 3. exd5 {[%emt 0:00:00]} Nf6 {[%emt 0:00:07]} 4. Bb5+ {[%emt 0:00:00]} Nbd7 {[%emt 0:00:17]} 5. c4 {[%emt 0:00:28]} a6 {[%emt 0:00:05]} 6. Ba4 {[%emt 0:00:04]} b5 {[%emt 0:00:29]} 7. cxb5 {[%emt 0:00:05]} Nb6 {[%emt 0:00:03]} 8. Nc3 {[%emt 0:02:18]} Nfxd5 {[%emt 0:08:46]} 9. Nf3 {[%emt 0:04:16]} Nxa4 {[%emt 0:11:56]} 10. Qxa4 {[%emt 0:01:21]} Nb6 {[%emt 0:01:59]} 11. Qe4 {[%emt 0:03:43]} e6 {[%emt 0:14:06]} 12. Ne5 {[%emt 0:33:31]} Qc7 {[%emt 0:05:34]} 13. a4 {[%emt 0:11:33]} Bb7 {[%emt 0:04:15]} 14. Qe2 {[%emt 0:00:46]} Nd7 {[%emt 0:16:39]} 15. bxa6 {[%emt 0:10:56]} Bxa6 {[%emt 0:00:33]} 16. Nb5 {[%emt 0:00:36]} Bxb5 {[%emt 0:03:34]} 17. Qxb5 {[%emt 0:00:26]} Bd6 {[%emt 0:00:04]} 18. Nxd7 {[%emt 0:10:38]} Qxd7 {[%emt 0:00:06]} 19. Qxd7+ {[%emt 0:04:34]} Kxd7 {[%emt 0:00:03]} 20. Rf1 {[%emt 0:02:31]} Rhb8 {[%emt 0:01:13]} 21. Rf3 {[%emt 0:05:30]} Rb4 {[%emt 0:01:58]} 22. b3 {[%emt 0:01:09]} Rxf4 {[%emt 0:03:01]} 23. Rxf4 {[%emt 0:01:43]} Bxf4 {[%emt 0:00:03]} 24. h3 {[%emt 0:01:26]} Be5 {[%emt 0:00:52]} 25. Rb1 {[%emt 0:00:05]} Kc6 {[%emt 0:05:01]} 26. Ke2 {[%emt 0:02:17]} Rb8 {[%emt 0:01:10]} 27. d3 {[%emt 0:00:28]} Bc3 {[%emt 0:01:42]} 28. Bd2 {[%emt 0:01:10]} Bb4 {[%emt 0:02:02]} 29. Be3 {[%emt 0:00:42]} Kd5 {[%emt 0:01:03]} 30. Rc1 {[%emt 0:00:37]} e5 {[%emt 0:00:22]} 31. g4 {[%emt 0:00:47]} f6 {[%emt 0:00:23]} 32. Rb1 {[%emt 0:00:39]} g6 {[%emt 0:06:19]} 33. Rf1 {[%emt 0:00:50]} Rf8 {[%emt 0:00:22]} 34. Rg1 {[%emt 0:00:45]} Rf7 {[%emt 0:00:28]} 35. h4 {[%emt 0:00:35]} Bc3 {[%emt 0:01:51]} 36. h5 {[%emt 0:00:14]} Rb7 {[%emt 0:00:36]} 37. Rb1 {[%emt 0:00:18]} f5 {[%emt 0:00:49]} 38. gxf5 {[%emt 0:01:05]} gxf5 {[%emt 0:00:03]} 39. Kf3 {[%emt 0:00:42]} Bd4 {[%emt 0:03:57]} 40. Bd2 {[%emt 0:00:31]} e4+ {[%emt 0:00:47]} 41. dxe4+ {[%emt 0:09:24]} fxe4+ {[%emt 0:00:40]} 42. Ke2 {[%emt 0:01:35]} Rg7 {[%emt 0:04:44]} 43. Rd1 {[%emt 0:12:54]} Rg2+ {[%emt 0:03:10]} 44. Kf1 {[%emt 0:00:30]} Rh2 {[%emt 0:02:23]} 45. b4 {[%emt 0:00:39]} cxb4 {[%emt 0:09:25]} 46. Bxb4 {[%emt 0:00:55]} e3 {[%emt 0:00:33]} 47. Re1 {[%emt 0:03:45]} Rf2+ {[%emt 0:01:18]} 48. Kg1 {[%emt 0:00:01]} Rb2 {[%emt 0:03:00]} 49. Be7 {[%emt 0:02:10]} e2+ {[%emt 0:00:57]} 50. Kg2 {[%emt 0:00:31]} Bc3 {[%emt 0:00:10]} 51. Bh4 {[%emt 0:01:03]} Bxe1 {[%emt 0:00:11]} 52. Bxe1 {[%emt 0:00:01]} Ke4 {[%emt 0:00:11]} 53. Kf2 {[%emt 0:00:02]} Kd3 {[%emt 0:00:09]} 54. a5 {[%emt 0:00:19]} Rb7 {[%emt 0:00:28]} 55. Kg2 {[%emt 0:01:05]} Rf7 {[%emt 0:00:11]} 56. a6 {[%emt 0:00:48]} Ra7 {[%emt 0:00:08]} 0-1

[Event "SVK ECo-C Extraliga 2018-19"]
[Site "Slovakia"]
[Date "2019.04.12"]
[Round "9.5"]
[White "Szegi, Tamas"]
[Black "Vass, Frantisek"]
[Result "1-0"]
[ECO "C02"]
[WhiteElo "2195"]
[BlackElo "2314"]
[Annotator "NA"]
[PlyCount "83"]
[EventDate "2018.11.10"]
[EventType "team-tourn"]
[EventCountry "SVK"]
[SourceTitle "playchess.com"]
[Source "ChessBase"]
[SourceQuality "1"]
[WhiteTeam "Komarno"]
[BlackTeam "Podhajska"]
[TimeControl "40/5400+30:1800+30"]

1. e4 {[%emt 0:00:00]} e6 {[%emt 0:00:07]} 2. d4 {[%emt 0:00:00]} d5 {[%emt 0:00:04]} 3. e5 {[%emt 0:00:00]} c5 {[%emt 0:00:06]} 4. c3 {[%emt 0:00:00]} Bd7 {[%emt 0:00:25]} 5. Nf3 {[%emt 0:04:13]} Qb6 {[%emt 0:00:09]} 6. Be2 {[%emt 0:00:27]} Bb5 {[%emt 0:00:09]} 7. c4 {[%emt 0:00:08]} Bxc4 {[%emt 0:07:44]} 8. Bxc4 {[%emt 0:00:18]} Qb4+ {[%emt 0:00:21]} 9. Nbd2 {[%emt 0:00:05]} dxc4 {[%emt 0:00:05]} 10. a3 {[%emt 0:00:05]} Qa5 {[%emt 0:01:03]} 11. O-O {[%emt 0:02:00]} Qa6 {[%emt 0:04:49]} 12. dxc5 {[%emt 0:13:41]} Nd7 {[%emt 0:00:40]} 13. Qe2 {[%emt 0:07:39]} Bxc5 {[%emt 0:04:31]} 14. Nxc4 {[%emt 0:06:12]} b5 {[%emt 0:00:44]} 15. Ncd2 {[%emt 0:11:20]} Ne7 $16 {[%emt 0:02:33]} 16. Ne4 {[%emt 0:10:05]} Nd5 {[%emt 0:01:27]} 17. Nxc5 {[%emt 0:07:36]} Nxc5 {[%emt 0:02:06]} 18. Nd4 {[%emt 0:00:34]} O-O {[%emt 0:09:59]} 19. b4 {[%emt 0:08:51]} Nd7 {[%emt 0:01:36]} 20. Bb2 {[%emt 0:06:28]} Rab8 {[%emt 0:02:49]} 21. f4 {[%emt 0:03:48]} Qb6 {[%emt 0:04:12]} 22. Kh1 {[%emt 0:00:11]} a6 {[%emt 0:01:10]} 23. f5 {[%emt 0:01:09]} exf5 {[%emt 0:00:06]} 24. Nxf5 {[%emt 0:02:54]} Qe6 {[%emt 0:09:46]} 25. Rad1 {[%emt 0:01:54]} N7b6 {[%emt 0:04:26]} 26. Qg4 {[%emt 0:01:18]} Qg6 {[%emt 0:00:33]} 27. Qf3 {[%emt 0:00:13]} Rbd8 {[%emt 0:05:10]} 28. Rd4 {[%emt 0:00:12]} Qe6 {[%emt 0:04:42]} 29. Qg4 {[%emt 0:01:10]} g6 {[%emt 0:09:42]} 30. Qg5 {[%emt 0:03:07]} Kh8 {[%emt 0:02:34]} 31. Nd6 {[%emt 0:00:44]} Rd7 {[%emt 0:01:29]} 32. Rh4 {[%emt 0:01:04]} f6 {[%emt 0:16:59]} 33. exf6 {[%emt 0:02:38]} Qe2 {[%emt 0:01:25]} 34. Rb1 {[%emt 0:00:17]} Kg8 {[%emt 0:00:35]} 35. f7+ {[%emt 0:00:21]} Rfxf7 {[%emt 0:00:17]} 36. Qxg6+ {[%emt 0:00:13]} Kf8 {[%emt 0:00:05]} 37. Qh6+ {[%emt 0:00:37]} Kg8 {[%emt 0:00:14]} 38. Nxf7 {[%emt 0:01:06]} Rxf7 {[%emt 0:00:04]} 39. Qg5+ {[%emt 0:00:09]} Kf8 {[%emt 0:00:03]} 40. h3 {[%emt 0:03:08]} Ke8 {[%emt 0:03:17]} 41. Qg8+ {[%emt 0:05:19]} Rf8 {[%emt 0:00:00]} 42. Qg3 {[%emt 0:00:44]} 1-0

[Event "SVK ECo-C Extraliga 2018-19"]
[Site "Slovakia"]
[Date "2019.04.12"]
[Round "9.6"]
[White "Haring, Viktor"]
[Black "Kostelny, Jozef"]
[Result "1-0"]
[ECO "B66"]
[WhiteElo "2287"]
[BlackElo "2220"]
[Annotator "NA"]
[PlyCount "55"]
[EventDate "2018.11.10"]
[EventType "team-tourn"]
[EventCountry "SVK"]
[SourceTitle "playchess.com"]
[Source "ChessBase"]
[SourceQuality "1"]
[WhiteTeam "Liptovska"]
[BlackTeam "Zilina"]
[TimeControl "40/5400+30:1800+30"]

1. e4 {[%emt 0:00:00]} c5 {[%emt 0:00:03]} 2. Nf3 {[%emt 0:00:03]} Nc6 {[%emt 0:00:34]} 3. d4 {[%emt 0:00:38]} cxd4 {[%emt 0:00:06]} 4. Nxd4 {[%emt 0:00:11]} Nf6 {[%emt 0:00:07]} 5. Nc3 {[%emt 0:00:12]} d6 {[%emt 0:00:13]} 6. Bg5 {[%emt 0:00:53]} e6 {[%emt 0:01:22]} 7. Qd2 {[%emt 0:00:32]} a6 {[%emt 0:00:57]} 8. O-O-O {[%emt 0:00:55]} Be7 {[%emt 0:02:59]} 9. f4 {[%emt 0:02:55]} Nxd4 {[%emt 0:03:00]} 10. Qxd4 {[%emt 0:00:18]} b5 {[%emt 0:00:30]} 11. Be2 {[%emt 0:13:35]} Rb8 {[%emt 0:07:40]} 12. e5 {[%emt 0:23:29]} dxe5 {[%emt 0:06:10]} 13. Qxe5 {[%emt 0:03:36]} Qb6 {[%emt 0:14:30]} 14. Ne4 {[%emt 0:14:59]} Nxe4 {[%emt 0:08:04]} 15. Qxe4 {[%emt 0:00:10]} f6 {[%emt 0:08:51]} 16. Bh5+ {[%emt 0:03:13]} Kf8 {[%emt 0:09:01]} 17. Bh4 {[%emt 0:01:46]} Bb7 {[%emt 0:06:11]} 18. Qe2 {[%emt 0:00:31]} Rd8 {[%emt 0:09:13]} 19. Rxd8+ {[%emt 0:02:19]} Bxd8 {[%emt 0:00:25]} 20. Bf2 {[%emt 0:01:31]} Qc7 {[%emt 0:02:11]} 21. Qxe6 {[%emt 0:02:08]} g6 {[%emt 0:00:31]} 22. Rd1 {[%emt 0:02:16]} Bc8 {[%emt 0:03:35]} 23. Qd5 {[%emt 0:10:14]} Kg7 {[%emt 0:09:00]} 24. Bf3 {[%emt 0:01:59]} Qxf4+ {[%emt 0:01:45]} 25. Kb1 {[%emt 0:00:07]} Re8 {[%emt 0:00:42]} 26. Qc6 {[%emt 0:01:21]} Bf5 {[%emt 0:04:04]} 27. Qxe8 {[%emt 0:00:30]} Qc4 {[%emt 0:00:05]} 28. Qe2 {[%emt 0:01:44]} 1-0

[Event "SVK ECo-C Extraliga 2018-19"]
[Site "Slovakia"]
[Date "2019.04.12"]
[Round "9.6"]
[White "Holtman, Teodor"]
[Black "Mikrut, Dariusz"]
[Result "1/2-1/2"]
[ECO "B28"]
[WhiteElo "2261"]
[BlackElo "2375"]
[Annotator "NA"]
[PlyCount "48"]
[EventDate "2018.11.10"]
[EventType "team-tourn"]
[EventCountry "SVK"]
[SourceTitle "playchess.com"]
[Source "ChessBase"]
[SourceQuality "1"]
[WhiteTeam "Snina"]
[BlackTeam "Prakovce"]
[TimeControl "40/5400+30:1800+30"]

1. e4 {[%emt 0:00:00]} c5 {[%emt 0:00:22]} 2. Nf3 {[%emt 0:00:00]} a6 {[%emt 0:00:07]} 3. Nc3 {[%emt 0:00:00]} b5 {[%emt 0:03:40]} 4. d4 {[%emt 0:00:00]} e6 {[%emt 0:00:44]} (4... cxd4 5. Nxd4 Bb7 6. Bd3 Nc6 7. Nxc6 Bxc6 8. O-O e6 9. Re1 Nf6 10. e5 b4 11. exf6 bxc3 12. fxg7 Bxg7 13. b3 Qh4 14. g3 Qd4 15. Qh5 Qd5 16. Qxd5 Bxd5 {1-0 (44) Guseinov,G (2667)-Romanov,E (2614) Hoogeveen 2018}) 5. dxc5 {[%emt 0:16:25]} Bxc5 {[%emt 0:00:18]} 6. Bd3 {[%emt 0:00:10] B28: Sicilian: 2 Nf3 a6 (O'Kelly Variation)} Bb7 {[%emt 0:00:56]} 7. O-O {[%emt 0:01:12]} d6 {[%emt 0:06:12]} 8. Qe2 {[%emt 0:01:02]} Nd7 {[%emt 0:01:46]} 9. Bd2 {[%emt 0:02:37]} Ne7 {[%emt 0:06:16]} 10. a3 {[%emt 0:02:21]} Nc6 {[%emt 0:00:27]} 11. b4 $146 {[%emt 0:02:16]} ({Predecessor:} 11. Rad1 O-O 12. Bf4 {1-0 (39) Dzhumaev,M (2557)-Drazic,S (2441) Kolkata 2013}) 11... Nd4 {[%emt 0:00:43]} 12. Nxd4 {[%emt 0:00:08]} Bxd4 {[%emt 0:00:05]} 13. a4 {[%emt 0:02:39]} bxa4 {[%emt 0:08:37]} 14. Rxa4 {[%emt 0:00:20]} O-O {[%emt 0:01:01]} 15. Rfa1 {[%emt 0:22:20]} Qf6 {[%emt 0:31:21]} 16. R1a3 {[%emt 0:01:34]} Rac8 {[%emt 0:05:06]} 17. Nd1 {[%emt 0:02:34]} Ne5 {[%emt 0:08:05]} 18. Ne3 {[%emt 0:07:18]} Nxd3 {[%emt 0:00:33]} 19. Qxd3 {[%emt 0:02:29]} Bxe3 {[%emt 0:06:53]} 20. Bxe3 {[%emt 0:01:19]} Qb2 $11 {[%emt 0:00:11]} (20... Qg6 $15 21. Rxa6 Bxa6 22. Rxa6 Rb8) 21. c4 {[%emt 0:04:51]} Bc6 {[%emt 0:04:00]} 22. Rxa6 {[%emt 0:06:51]} Qxb4 {[%emt 0:00:29]} 23. Bd2 {[%emt 0:04:14]} Qb7 {[%emt 0:01:26]} 24. Ra7 {[%emt 0:01:07]} Qb2 {[%emt 0:02:51]} 1/2-1/2

[Event "SVK ECo-C Extraliga 2018-19"]
[Site "Slovakia"]
[Date "2019.04.12"]
[Round "9.6"]
[White "Gazik, Igor"]
[Black "Kukel, Imre"]
[Result "1-0"]
[ECO "B26"]
[WhiteElo "2253"]
[BlackElo "2258"]
[Annotator "NA"]
[PlyCount "63"]
[EventDate "2018.11.10"]
[EventType "team-tourn"]
[EventCountry "SVK"]
[SourceTitle "playchess.com"]
[Source "ChessBase"]
[SourceQuality "1"]
[WhiteTeam "Podhajska"]
[BlackTeam "Komarno"]
[TimeControl "40/5400+30:1800+30"]

1. e4 {[%emt 0:00:09]} c5 {[%emt 0:01:22]} 2. Nc3 {[%emt 0:00:14]} Nc6 {[%emt 0:00:54]} 3. g3 {[%emt 0:00:37]} g6 {[%emt 0:03:48]} 4. Bg2 {[%emt 0:00:06]} Bg7 {[%emt 0:00:03]} 5. d3 {[%emt 0:00:06]} d6 {[%emt 0:00:03]} 6. Be3 {[%emt 0:00:17]} e5 {[%emt 0:01:16]} 7. Qd2 {[%emt 0:02:22]} Be6 {[%emt 0:10:54]} 8. Nge2 {[%emt 0:07:26]} Qd7 {[%emt 0:00:00]} 9. f4 {[%emt 0:06:45]} b6 {[%emt 0:00:00]} 10. O-O {[%emt 0:12:46]} Nge7 {[%emt 0:02:13]} 11. Rf2 {[%emt 0:04:35]} O-O {[%emt 0:04:37]} 12. Raf1 {[%emt 0:03:24]} f5 $11 {[%emt 0:01:07]} 13. Nd5 {[%emt 0:06:01]} Rab8 {[%emt 0:10:25]} 14. c3 {[%emt 0:12:12]} Rbc8 {[%emt 0:06:47]} 15. b3 {[%emt 0:04:02]} Rf7 {[%emt 0:04:27]} 16. Kh1 {[%emt 0:04:47]} Rff8 {[%emt 0:03:08]} 17. Rc1 {[%emt 0:04:57]} Rcd8 {[%emt 0:01:53]} 18. Rff1 {[%emt 0:02:04]} Kh8 {[%emt 0:01:43]} 19. a3 {[%emt 0:03:14]} Na5 {[%emt 0:03:52]} 20. Qa2 {[%emt 0:01:55]} Bxd5 {[%emt 0:05:14]} 21. exd5 {[%emt 0:00:06]} Qb5 {[%emt 0:00:16]} 22. fxe5 {[%emt 0:04:09]} dxe5 {[%emt 0:02:07]} 23. Bg5 {[%emt 0:00:08]} Bf6 {[%emt 0:00:13]} 24. Bxf6+ {[%emt 0:01:06]} Rxf6 {[%emt 0:00:04]} 25. b4 {[%emt 0:00:45]} Nb7 {[%emt 0:00:42]} 26. c4 {[%emt 0:00:49]} Qd7 {[%emt 0:00:26]} 27. Qb2 {[%emt 0:00:45]} Qd6 {[%emt 0:00:24]} 28. Rfe1 {[%emt 0:01:50]} cxb4 {[%emt 0:08:01]} 29. axb4 {[%emt 0:00:20]} a5 {[%emt 0:00:03]} 30. Nf4 {[%emt 0:09:21]} Qxb4 {[%emt 0:05:34]} 31. Qxe5 {[%emt 0:00:14]} Ng8 {[%emt 0:00:17]} 32. Qc7 {[%emt 0:00:31]} 1-0

[Event "SVK ECo-C Extraliga 2018-19"]
[Site "Slovakia"]
[Date "2019.04.12"]
[Round "9.6"]
[White "Jozefek, Michal"]
[Black "Maslik, Miroslav"]
[Result "1-0"]
[ECO "D87"]
[WhiteElo "2192"]
[BlackElo "2366"]
[Annotator "NA"]
[PlyCount "42"]
[EventDate "2018.11.10"]
[EventType "team-tourn"]
[EventCountry "SVK"]
[SourceTitle "playchess.com"]
[Source "ChessBase"]
[SourceQuality "1"]
[WhiteTeam "Osuske"]
[BlackTeam "Modra"]
[TimeControl "40/5400+30:1800+30"]

1. d4 {[%emt 0:00:00]} Nf6 {[%emt 0:00:00]} 2. c4 {[%emt 0:00:00]} g6 {[%emt 0:00:00]} 3. Nc3 {[%emt 0:00:00]} d5 {[%emt 0:00:00]} 4. cxd5 {[%emt 0:00:03]} Nxd5 {[%emt 0:00:00]} 5. e4 {[%emt 0:00:07]} Nxc3 {[%emt 0:00:00]} 6. bxc3 {[%emt 0:00:06]} Bg7 {[%emt 0:00:00]} 7. Bc4 {[%emt 0:00:08]} c5 {[%emt 0:00:26]} 8. Ne2 {[%emt 0:00:22]} O-O {[%emt 0:00:28]} 9. Be3 {[%emt 0:00:07]} Nc6 {[%emt 0:00:56]} 10. Rc1 {[%emt 0:01:48]} b6 {[%emt 0:09:44]} 11. h4 {[%emt 0:12:59]} cxd4 {[%emt 0:06:14]} 12. cxd4 {[%emt 0:00:12]} Bb7 {[%emt 0:03:07]} 13. h5 {[%emt 0:03:53]} Na5 {[%emt 0:11:43]} 14. hxg6 {[%emt 0:06:43]} hxg6 {[%emt 0:01:12]} 15. Bd3 {[%emt 0:00:32]} Rc8 {[%emt 0:05:29]} 16. Rxc8 {[%emt 0:05:13]} Qxc8 {[%emt 0:00:04]} 17. Qd2 {[%emt 0:01:12]} Qg4 {[%emt 0:15:12]} 18. Bh6 {[%emt 0:21:54]} Qxg2 {[%emt 0:02:43]} 19. Ng3 {[%emt 0:03:40]} Bf6 {[%emt 0:26:56]} 20. Bxf8 {[%emt 0:05:48]} Kxf8 {[%emt 0:00:09]} 21. Qe3 {[%emt 0:05:03]} Nc6 {[%emt 0:04:08]} 1-0

[Event "SVK ECo-C Extraliga 2018-19"]
[Site "Slovakia"]
[Date "2019.04.12"]
[Round "9.7"]
[White "Jacko, Vladimir"]
[Black "Pcola, Pavol"]
[Result "0-1"]
[ECO "A06"]
[WhiteElo "2322"]
[BlackElo "2382"]
[Annotator "NA"]
[PlyCount "50"]
[EventDate "2018.11.10"]
[EventType "team-tourn"]
[EventCountry "SVK"]
[SourceTitle "playchess.com"]
[Source "ChessBase"]
[SourceQuality "1"]
[WhiteTeam "Prakovce"]
[BlackTeam "Snina"]
[TimeControl "40/5400+30:1800+30"]

1. Nf3 {[%emt 0:00:00]} d5 {[%emt 0:00:00]} 2. g3 {[%emt 0:01:14]} Nf6 {[%emt 0:00:00]} 3. Bg2 {[%emt 0:00:13]} c6 {[%emt 0:00:35]} 4. O-O {[%emt 0:01:42]} Bf5 {[%emt 0:00:18]} 5. d3 {[%emt 0:02:50]} h6 {[%emt 0:00:10]} 6. Nbd2 {[%emt 0:01:04]} e6 {[%emt 0:01:19]} 7. Re1 {[%emt 0:01:23]} Be7 {[%emt 0:00:11]} 8. b3 {[%emt 0:01:34]} O-O {[%emt 0:01:55]} 9. Bb2 {[%emt 0:00:08]} Nbd7 {[%emt 0:02:50]} 10. c4 {[%emt 0:05:51]} Bh7 {[%emt 0:02:34]} 11. a3 {[%emt 0:04:12]} a5 {[%emt 0:03:01]} 12. Qc2 {[%emt 0:17:49]} Qb8 {[%emt 0:15:35]} 13. Bc3 {[%emt 0:07:02]} b5 {[%emt 0:03:15]} 14. cxb5 {[%emt 0:01:36]} cxb5 {[%emt 0:00:17]} 15. b4 {[%emt 0:03:07]} Rc8 {[%emt 0:03:24]} 16. Qb3 {[%emt 0:02:16]} axb4 {[%emt 0:04:41]} 17. Bxb4 {[%emt 0:04:10]} Bc5 {[%emt 0:02:39]} 18. Qb2 {[%emt 0:04:22]} Qb6 {[%emt 0:10:10]} 19. Bxc5 {[%emt 0:14:28]} Nxc5 {[%emt 0:00:46]} 20. Rab1 {[%emt 0:01:15]} Bxd3 {[%emt 0:07:09]} 21. Rbc1 {[%emt 0:09:35]} Bh7 {[%emt 0:01:41]} 22. Ne5 {[%emt 0:02:43]} Qa5 {[%emt 0:10:41]} 23. Nb3 {[%emt 0:06:11]} Nxb3 {[%emt 0:05:12]} 24. Qxb3 {[%emt 0:00:01]} Qd2 {[%emt 0:04:53]} 25. Rb1 {[%emt 0:01:43]} Bxb1 0-1

[Event "SVK ECo-C Extraliga 2018-19"]
[Site "Slovakia"]
[Date "2019.04.12"]
[Round "9.7"]
[White "Schwarz, Dusan"]
[Black "Spacek, Oliver"]
[Result "1-0"]
[ECO "E70"]
[WhiteElo "2314"]
[BlackElo "2195"]
[Annotator "NA"]
[PlyCount "49"]
[EventDate "2018.11.10"]
[EventType "team-tourn"]
[EventCountry "SVK"]
[SourceTitle "playchess.com"]
[Source "ChessBase"]
[SourceQuality "1"]
[WhiteTeam "Modra"]
[BlackTeam "Osuske"]
[TimeControl "40/5400+30:1800+30"]

1. d4 {[%emt 0:00:00]} Nf6 {[%emt 0:00:00]} 2. c4 {[%emt 0:00:00]} c5 {[%emt 0:00:47]} 3. d5 {[%emt 0:00:00]} g6 {[%emt 0:02:25]} 4. Nc3 {[%emt 0:00:22]} d6 {[%emt 0:00:26]} 5. e4 {[%emt 0:00:28]} Bg7 {[%emt 0:00:06]} 6. Bd3 {[%emt 0:02:26]} O-O {[%emt 0:04:29]} 7. Nge2 {[%emt 0:06:05]} e5 {[%emt 0:07:57]} 8. h3 {[%emt 0:03:45]} a6 {[%emt 0:07:51]} 9. Be3 {[%emt 0:05:43]} Qa5 {[%emt 0:04:25]} 10. Qd2 {[%emt 0:02:04]} Nbd7 {[%emt 0:03:17]} 11. O-O {[%emt 0:08:04]} b5 {[%emt 0:02:41]} 12. cxb5 {[%emt 0:21:17]} axb5 {[%emt 0:00:22]} 13. Bxb5 {[%emt 0:01:26]} Ba6 {[%emt 0:02:29]} 14. Bxa6 {[%emt 0:02:57]} Rxa6 {[%emt 0:02:26]} 15. Rab1 {[%emt 0:07:25]} Rb8 {[%emt 0:16:15]} 16. b3 {[%emt 0:01:55]} Rb4 {[%emt 0:05:26]} 17. f3 {[%emt 0:00:36]} h5 {[%emt 0:09:15]} 18. a4 {[%emt 0:06:16]} Ne8 {[%emt 0:06:08]} 19. Nb5 {[%emt 0:03:12]} c4 {[%emt 0:04:29]} 20. bxc4 {[%emt 0:02:15]} Rxc4 {[%emt 0:00:31]} 21. Qxa5 {[%emt 0:01:10]} Rxa5 {[%emt 0:00:01]} 22. Nbc3 {[%emt 0:01:54]} Nc5 {[%emt 0:04:31]} 23. Rb8 {[%emt 0:01:46]} Kf8 {[%emt 0:00:54]} 24. Nb5 {[%emt 0:00:42]} Ke7 {[%emt 0:00:46]} 25. Rxe8+ {[%emt 0:00:17]} 1-0